fUST/lending_fUST_20250225
["ID","MTS","AMOUNT","RATE_DAILY","PERIOD"]
[354360797,1740442238367,-497.82226631,0.001,120]
[354360798,1740442238378,-500.0,0.001,120]
[354360799,1740442238390,-500.0,0.001,120]
[354360800,1740442238401,-150.51,0.001,2]
[354360801,1740442238411,-500.0,0.001,120]
[354360802,1740442238421,-150.51,0.001,2]
[354360803,1740442238432,-745.0,0.001,120]
[354360805,1740442238443,-200.0,0.001,120]
[354360807,1740442238454,-749.0,0.001,120]
[354360809,1740442238463,-150.51,0.001,120]
[354360811,1740442238474,-500.0,0.001,120]
[354360813,1740442238484,-150.51,0.001,2]
[354360815,1740442238494,-500.0,0.001,120]
[354360817,1740442238504,-150.51,0.001,2]
[354360819,1740442238514,-500.0,0.001,120]
[354360820,1740442238524,-13052.93502346,0.00100174,120]
[354360821,1740442238535,-150.51,0.00100274,64]
[354360822,1740442238546,-150.51,0.00100274,120]
[354360823,1740442238556,-150.51,0.00100274,120]
[354360824,1740442238566,-500.0,0.00100274,120]
[354360825,1740442238576,-150.51,0.00100274,120]
[354360826,1740442238587,-500.0,0.00100274,120]
[354360827,1740442238597,-500.0,0.00100274,120]
[354360828,1740442238607,-500.0,0.00100274,120]
[354360829,1740442238618,-500.0,0.00100274,120]
[354360830,1740442238628,-500.0,0.00100274,120]
[354360832,1740442238638,-650.1248652,0.00100274,120]
[354360834,1740442238648,-745.0,0.00100274,120]
[354360836,1740442238658,-749.0,0.00100274,120]
[354360837,1740442238669,-150.51,0.00100274,120]
[354360839,1740442238680,-939.09378813,0.00100274,120]
[354360841,1740442238689,-500.0,0.00100274,120]
[354360843,1740442238699,-500.0,0.00100274,120]
[354360845,1740442238709,-150.51,0.00100548,64]
[354360847,1740442238719,-150.51,0.00100548,120]
[354360849,1740442238729,-150.51,0.00100548,120]
[354360850,1740442238739,-520.75626432,0.00100548,120]
[354360852,1740442238749,-150.51,0.00100548,120]
[354360853,1740442238759,-500.0,0.00100548,120]
[354360854,1740442238769,-500.0,0.00100548,120]
[354360855,1740442238779,-500.0,0.00100548,120]
[354360856,1740442238789,-500.0,0.00100548,120]
[354360857,1740442238799,-500.0,0.00100548,120]
[354360858,1740442238809,-745.0,0.00100548,120]
[354360859,1740442238819,-749.0,0.00100548,120]
[354360860,1740442238829,-217.57571514,0.00100548,120]
[354360862,1740442238839,-500.0,0.00100548,120]
[354360863,1740442238848,-500.0,0.00100548,120]
[354360865,1740442238858,-150.51,0.00100822,64]
[354360867,1740442238868,-150.51,0.00100822,120]
[354360869,1740442238878,-150.51,0.00100822,120]
[354360871,1740442238887,-150.51,0.00100822,120]
[354360872,1740442238897,-500.0,0.00100822,120]
[354360874,1740442238907,-500.0,0.00100822,120]
[354360876,1740442238918,-500.0,0.00100822,120]
[354360878,1740442238927,-500.0,0.00100822,120]
[354360880,1740442238937,-500.0,0.00100822,120]
[354360882,1740442238947,-745.0,0.00100822,120]
[354360884,1740442238956,-749.0,0.00100822,120]
[354360886,1740442238966,-500.0,0.00100822,120]
[354360888,1740442238976,-500.0,0.00100822,120]
[354360890,1740442238985,-11702.98776645,0.001009,7]
[354360891,1740442238995,-150.51,0.00101096,64]
[354360893,1740442239004,-150.51,0.00101096,120]
[354360896,1740442239014,-151.49243676,0.00101096,120]
[354360898,1740442239024,-150.51,0.00101096,120]
[354360900,1740442239035,-751.74309389,0.00101096,120]
[354360902,1740442239044,-500.0,0.00101096,120]
[354360904,1740442239054,-996.32708224,0.00101096,120]
[354360906,1740442239064,-500.0,0.00101096,120]
[354360908,1740442239074,-500.0,0.00101096,120]
[354360910,1740442239084,-745.0,0.00101096,120]
[354360911,1740442239094,-749.0,0.00101096,120]
[354360912,1740442239104,-500.0,0.00101096,120]
[354360913,1740442239115,-500.0,0.00101096,120]
[354360914,1740442239125,-236.96792084,0.0010137,64]
[354360915,1740442239135,-247.45,0.0010137,120]
[354360916,1740442239146,-177.94674678,0.0010137,120]
[354360917,1740442239156,-500.0,0.0010137,120]
[354360918,1740442239166,-500.0,0.0010137,120]
[354360919,1740442239177,-500.0,0.0010137,120]
[354360920,1740442239189,-745.0,0.0010137,120]
[354360921,1740442239204,-749.0,0.0010137,120]
[354360922,1740442239214,-643.5776535,0.0010137,120]
[354360923,1740442239230,-500.0,0.0010137,120]
[354360924,1740442239240,-500.0,0.00101644,120]
[354360925,1740442239250,-500.0,0.00101644,120]
[354360926,1740442239263,-500.0,0.00101644,120]
[354360927,1740442239273,-745.0,0.00101644,120]
[354360928,1740442239283,-749.0,0.00101644,120]
[354360929,1740442239294,-500.0,0.00101644,120]
[354360930,1740442239305,-500.0,0.00101918,120]
[354360931,1740442239315,-800.92879349,0.00101918,120]
[354360932,1740442239325,-500.0,0.00101918,120]
[354360933,1740442239335,-582.57637895,0.00101918,120]
[354360954,1740442239579,-162.18757206,0.00101918,120]
[354360956,1740442239592,-0.23604899,0.00101918,120]
[354360958,1740442239602,-749.0,0.00101918,120]
[354360961,1740442239612,-487.75000523,0.00101918,120]
[354360964,1740442239624,-12.24999477,0.00101918,120]
[354360966,1740442239633,-500.0,0.00102192,120]
[354360968,1740442239643,-500.0,0.00102192,120]
[354360970,1740442239652,-745.0,0.00102192,120]
[354360972,1740442239664,-749.0,0.00102192,120]
[354360988,1740442239806,-641.65824732,0.00102192,120]
[354360991,1740442239817,-500.0,0.00102466,120]
[354360994,1740442239829,-500.0,0.00102466,120]
[354360997,1740442239839,-745.0,0.00102466,120]
[354361001,1740442239850,-749.0,0.00102466,120]
[354361005,1740442239861,-500.60614424,0.0010274,120]
[354361009,1740442239872,-500.0,0.0010274,120]
[354361013,1740442239884,-745.0,0.0010274,120]
[354361016,1740442239895,-749.0,0.0010274,120]
[354361018,1740442239906,-500.0,0.00103014,120]
[354361021,1740442239920,-745.0,0.00103014,120]
[354361023,1740442239931,-749.0,0.00103014,120]
[354361024,1740442239941,-500.0,0.00103288,120]
[354361026,1740442239952,-745.0,0.00103288,120]
[354361028,1740442239962,-749.0,0.00103288,120]
[354361030,1740442239974,-500.0,0.00103364,60]
[354361032,1740442239984,-500.0,0.00103562,120]
[354361034,1740442239995,-745.0,0.00103562,120]
[354361036,1740442240005,-749.0,0.00103562,120]
[354361039,1740442240015,-500.0,0.00103836,120]
[354361041,1740442240026,-745.0,0.00103836,120]
[354361043,1740442240036,-749.0,0.00103836,120]
[354361045,1740442240047,-500.0,0.00103912,60]
[354361047,1740442240057,-500.0,0.0010411,120]
[354361049,1740442240067,-745.0,0.0010411,120]
[354361051,1740442240077,-749.0,0.0010411,120]
[354361052,1740442240088,-512.31542375,0.00104384,120]
[354361054,1740442240099,-745.0,0.00104384,120]
[354361056,1740442240110,-749.0,0.00104384,120]
[354361059,1740442240121,-745.0,0.00104658,120]
[354361061,1740442240133,-749.0,0.00104658,120]
[354361063,1740442240142,-745.0,0.00104932,120]
[354361065,1740442240153,-749.0,0.00104932,120]
[354361067,1740442240162,-763.92820355,0.00105205,120]
[354361069,1740442240176,-768.69527324,0.00105205,120]
[354361070,1740442240189,-380.0,0.00108584,120]
[354361072,1740442240209,-165.454,0.0011,120]
[354361074,1740442240219,-800.0,0.00132068,120]
[354361076,1740442240230,-800.0,0.00132342,120]
[354361079,1740442240243,-555.19328861,0.00132606,24]
[354361081,1740442240252,-800.0,0.00132616,120]
[354361083,1740442240262,-800.0,0.0013289,120]
[354361085,1740442240272,-800.0,0.00133438,120]
[354361086,1740442240282,-800.0,0.00133986,120]
[354361089,1740442240293,-800.0,0.00134534,120]
[354361090,1740442240303,-800.0,0.00135082,120]
[354361092,1740442240313,-800.0,0.0013563,120]
[354361094,1740442240324,-800.0,0.00136178,120]
[354361096,1740442240333,-800.0,0.00136726,120]
[354361098,1740442240343,-800.0,0.00137274,120]
[354361100,1740442240352,-246.90673667,0.00137822,120]
[354361102,1740442240362,-500.0,0.00141857,120]
[354361104,1740442240377,-500.0,0.00142405,120]
[354361106,1740442240387,-300.0,0.00142733,120]
[354361108,1740442240398,-4882.8,0.00149952,10]
[354361110,1740442240408,-5000.0,0.00149962,120]
[354361112,1740442240420,-5000.0,0.00149962,120]
[354361114,1740442240430,-5000.0,0.00149962,120]
[354361116,1740442240439,-5000.0,0.00149962,120]
[354361118,1740442240449,-5000.0,0.00149962,120]
[354361120,1740442240458,-186.446373,0.00156164,120]
[354361122,1740442240468,-5000.0,0.00159962,120]
[354361124,1740442240477,-200.0,0.00177755,120]
[354361126,1740442240486,-749.2301709,0.00179999,120]
[354361128,1740442240496,-157.498203,0.00188,7]
[354361130,1740442240506,-12985.7579163,0.00196123,60]
[354361132,1740442240515,-28398.38015123,0.002,30]
[354361134,1740442240525,-500.0,0.002,120]
[354361136,1740442240535,-445.94572311,0.002,120]
[354361137,1740442240545,-157.498203,0.002,2]
[354361140,1740442240555,-501.34694772,0.002002,120]
[354361141,1740442240564,-152.27744119,0.00211111,120]
[354361143,1740442240575,-149.9,0.00213489,120]
[354361146,1740442240585,-152.27744119,0.00222222,120]
[354361147,1740442240594,-152.27744119,0.00233333,120]
[354361149,1740442240604,-152.27744119,0.00244444,120]
[354361151,1740442240615,-149.9,0.00249826,120]
[354361153,1740442240624,-1000.0,0.0025,120]
[354361155,1740442240635,-152.27744119,0.00255556,120]
[354361157,1740442240645,-157.498203,0.0026,15]
[354361159,1740442240655,-152.27744119,0.00266667,120]
[354361161,1740442240667,-12511.6294985,0.00273429,30]
[354361163,1740442240678,-12511.6294985,0.00273852,30]
[354361165,1740442240689,-151.0,0.00273973,120]
[354361167,1740442240699,-151.0,0.00273973,120]
[354361169,1740442240709,-151.0,0.00273973,120]
[354361171,1740442240720,-151.0,0.00273973,120]
[354361173,1740442240729,-154.535915,0.00273973,120]
[354361175,1740442240739,-204.415288,0.00273973,120]
[354361177,1740442240749,-151.0,0.00273973,120]
[354361179,1740442240759,-151.0,0.00273973,120]
[354361181,1740442240768,-151.0,0.00273973,120]
[354361183,1740442240778,-151.0,0.00273973,120]
[354361185,1740442240787,-151.0,0.00273973,120]
[354361187,1740442240797,-151.0,0.00273973,120]
[354361189,1740442240807,-151.0,0.00273973,30]
[354361190,1740442240817,-151.0,0.00273973,30]
[354361192,1740442240827,-151.0,0.00273973,30]
[354361194,1740442240837,-151.0,0.00273973,30]
[354361196,1740442240848,-231.939908,0.00273973,30]
[354361198,1740442240858,-158.710134,0.00273973,120]
[354361200,1740442240869,-287.582159,0.00273973,120]
[354361202,1740442240880,-151.0,0.00273973,120]
[354361204,1740442240891,-247.152843,0.00273973,120]
[354361206,1740442240903,-258.779928,0.00273973,120]
[354361208,1740442240916,-258.779928,0.00273973,120]
[354361210,1740442240928,-258.779928,0.00273973,120]
[354361212,1740442240939,-258.779928,0.00273973,120]
[354361214,1740442240950,-258.779928,0.00273973,120]
[354361217,1740442240962,-258.779928,0.00273973,120]
[354361218,1740442240973,-258.779928,0.00273973,120]
[354361220,1740442240985,-258.779928,0.00273973,120]
[354361223,1740442240999,-258.779928,0.00273973,120]
[354361225,1740442241010,-258.779928,0.00273973,120]
[354361226,1740442241021,-258.779928,0.00273973,120]
[354361229,1740442241033,-258.779928,0.00273973,120]
[354361231,1740442241046,-258.779928,0.00273973,120]
[354361233,1740442241058,-258.779928,0.00273973,120]
[354361235,1740442241070,-258.779928,0.00273973,120]
[354361237,1740442241081,-258.779928,0.00273973,120]
[354361239,1740442241092,-258.779928,0.00273973,120]
[354361241,1740442241103,-258.779928,0.00273973,120]
[354361243,1740442241118,-258.779928,0.00273973,120]
[354361245,1740442241129,-258.779936,0.00273973,120]
[354361247,1740442241141,-151.0,0.00273973,110]
[354361248,1740442241153,-151.0,0.00273973,110]
[354361251,1740442241164,-256.880528,0.00273973,120]
[354361252,1740442241178,-206.262312,0.00273973,120]
[354361254,1740442241192,-257.780618,0.00273973,120]
[354361256,1740442241203,-257.780618,0.00273973,120]
[354361258,1740442241214,-257.780618,0.00273973,120]
[354361260,1740442241224,-257.780618,0.00273973,120]
[354361262,1740442241237,-257.780618,0.00273973,120]
[354361265,1740442241250,-257.780618,0.00273973,120]
[354361267,1740442241260,-257.780618,0.00273973,120]
[354361269,1740442241271,-257.780618,0.00273973,120]
[354361271,1740442241282,-257.780618,0.00273973,120]
[354361273,1740442241298,-257.780618,0.00273973,120]
[354361275,1740442241308,-257.780618,0.00273973,120]
[354361276,1740442241319,-257.780618,0.00273973,120]
[354361279,1740442241329,-257.780618,0.00273973,120]
[354361280,1740442241339,-257.780618,0.00273973,120]
[354361282,1740442241349,-257.780618,0.00273973,120]
[354361284,1740442241358,-257.780618,0.00273973,120]
[354361286,1740442241368,-257.780618,0.00273973,120]
[354361288,1740442241377,-257.780618,0.00273973,120]
[354361290,1740442241387,-257.780618,0.00273973,120]
[354361292,1740442241397,-257.780626,0.00273973,120]
[354361294,1740442241408,-151.0,0.00273973,120]
[354361296,1740442241424,-254.663609,0.00273973,120]
[354361298,1740442241433,-1000.0,0.00274086,120]
[354361300,1740442241443,-1000.0,0.00274169,120]
[354361302,1740442241452,-1000.0,0.00274269,120]
[354361304,1740442241461,-12511.6294985,0.00274362,30]
[354361306,1740442241471,-12511.62949851,0.00274656,30]
[354361308,1740442241481,-152.27744119,0.00277778,120]
[354361310,1740442241490,-149.9,0.00286688,120]
[354361312,1740442241500,-152.27744119,0.00288889,120]
[354361314,1740442241510,-12985.7579163,0.00294651,90]
[354361316,1740442241519,-152.27744119,0.003,120]
[354361317,1740442241528,-152.27744119,0.00311111,120]
[354361319,1740442241538,-152.27744119,0.00322222,120]
[354361321,1740442241547,-149.9,0.00324015,120]
[354361322,1740442241557,-152.27744119,0.00333333,120]
[354361324,1740442241567,-152.27744119,0.00344444,120]
[354361326,1740442241577,-152.27744119,0.00355556,120]
[354361327,1740442241588,-149.9,0.00361759,120]
[354361328,1740442241597,-152.27744119,0.00366667,120]
[354361329,1740442241607,-152.27744119,0.00377778,120]
[354361330,1740442241616,-152.27744119,0.00388889,120]
[354361331,1740442241626,-12985.7579163,0.00394914,120]
[354361333,1740442241635,-149.9,0.00399884,120]
[354361335,1740442241645,-152.27,0.004,120]
[354361336,1740442241655,-190.39394488,0.00438357,120]
[354361339,1740442241665,-12985.7579163,0.00499444,120]
[354361341,1740442241682,-13052.93502345,0.00575106,120]
[354361342,1740442241692,-12985.7579163,0.00598977,120]
[354361344,1740442241703,-1498.3854,0.006,107]
[354361346,1740442241713,-1357.846413,0.006469,120]
[354361348,1740442241724,-1165.079572,0.00664,81]
[354361350,1740442241734,-6492.87895814,0.00690691,120]
[354361352,1740442241744,-1525.22,0.007401,61]
[354361353,1740442241755,-394.38626781,0.0074747,120]
[354361355,1740442241766,-1763.986864,0.00763641,66]
[354361357,1740442241776,-1839.71394,0.00921976,110]
[354361359,1740442241786,-6492.87895814,0.00990688,120]
[354361361,1740442241796,-13052.93502345,0.01050037,120]
[354361363,1740442241806,-1812.6,0.011,74]
[354361365,1740442241816,-749.2301709,0.01122497,120]
[354361367,1740442241825,-500.0,0.01185336,120]
[354361369,1740442241835,-500.0,0.01320719,120]
[354361371,1740442241844,-6492.87895814,0.01495996,120]
[354361373,1740442241854,-13052.93502345,0.01524969,120]
[354361375,1740442241863,-300.0,0.0174747,120]
[354361377,1740442241873,-6492.87895814,0.01996192,120]
[354361379,1740442241882,-13052.93502345,0.019999,120]
[354361381,1740442241892,-1497.9,0.02,112]
[354361383,1740442241901,-155.0,0.02,120]
[354361385,1740442241910,-504.75668437,0.02084766,120]
[354361387,1740442241922,-155.0,0.02222,120]
[354361389,1740442241933,-1856.288,0.02433692,117]
[354361391,1740442241942,-6492.87895814,0.02496253,120]
[354361393,1740442241952,-162.0,0.02538,120]
[354361394,1740442241962,-500.0,0.02563432,120]
[354361395,1740442241972,-300.0,0.0274747,120]
[354361396,1740442241984,-1550.8376,0.02837,67]
[354361397,1740442241994,-2387.00260639,0.03,120]
[354361398,1740442242004,-155.0,0.03,120]
[354361399,1740442242014,-500.0,0.03008082,120]
[354361400,1740442242025,-153.0,0.03108874,120]
[354361401,1740442242035,-153.0,0.03109558,120]
[354361402,1740442242045,-153.0,0.03109558,120]
[354361403,1740442242055,-153.0,0.03109558,120]
[354361404,1740442242067,-153.0,0.03109558,120]
[354361405,1740442242078,-153.0,0.03109558,120]
[354361406,1740442242091,-153.0,0.03109558,120]
[354361407,1740442242102,-153.0,0.03109558,120]
[354361408,1740442242113,-153.0,0.03115641,120]
[354361409,1740442242126,-153.0,0.03115641,120]
[354361410,1740442242138,-153.0,0.03115641,120]
[354361411,1740442242150,-153.0,0.03115641,120]
[354361412,1740442242160,-153.0,0.03115641,120]
[354361413,1740442242175,-153.0,0.03121446,120]
[354361414,1740442242188,-153.0,0.03121446,120]
[354361415,1740442242200,-153.0,0.03121446,120]
[354361417,1740442242212,-153.0,0.03121446,120]
[354361419,1740442242224,-153.0,0.03121446,120]
[354361421,1740442242240,-153.0,0.03121446,120]
[354361423,1740442242251,-153.0,0.03121446,120]
[354361424,1740442242261,-153.0,0.03121446,120]
[354361426,1740442242274,-153.0,0.03121446,120]
[354361428,1740442242287,-153.0,0.03121446,120]
[354361430,1740442242298,-153.0,0.03121446,120]
[354361431,1740442242308,-153.0,0.03121446,120]
[354361432,1740442242319,-153.0,0.03121446,120]
[354361433,1740442242329,-153.0,0.03121446,120]
[354361434,1740442242339,-153.0,0.03121446,120]
[354361435,1740442242350,-153.0,0.03121446,120]
[354361436,1740442242360,-153.0,0.03121446,120]
[354361437,1740442242370,-153.0,0.03127387,120]
[354361438,1740442242380,-153.0,0.03127387,120]
[354361439,1740442242389,-153.0,0.03127387,120]
[354361440,1740442242401,-153.0,0.03127387,120]
[354361441,1740442242410,-153.0,0.03127387,120]
[354361442,1740442242420,-153.0,0.03127387,120]
[354361443,1740442242430,-153.0,0.03127387,120]
[354361444,1740442242439,-153.0,0.03127387,120]
[354361450,1740442242546,-500.0,0.03238696,120]
[354361452,1740442242558,-155.0,0.03333,120]
[354361454,1740442242568,-173.10700505,0.03456,14]
[354361456,1740442242579,-200.0,0.035,120]
[354361458,1740442242590,-171.0,0.03538,120]
[354361460,1740442242600,-109909.12190482,0.03648,119]
[354361462,1740442242610,-70000.0,0.03689,120]
[354361465,1740442242619,-200.0,0.0374747,120]
[354361468,1740442242630,-1523.6,0.03780877,87]
[354361470,1740442242642,-5308.31159512,0.0383989,30]
[354361471,1740442242655,-999.17802245,0.03839999,120]
[354361473,1740442242665,-93637.34848061,0.0384,120]
[354361474,1740442242677,-500.0,0.0384,120]
[354361475,1740442242687,-638.60977079,0.03855358,120]
[354361476,1740442242698,-638.60977079,0.03953572,120]
[354361477,1740442242709,-5308.31159503,0.0396878,30]
[354361478,1740442242720,-155.0,0.04,120]
[354361480,1740442242732,-242.0,0.04,120]
[354361482,1740442242743,-2853.0,0.04,104]
[354361484,1740442242754,-151.0,0.04,120]
[354361486,1740442242766,-1000.0,0.04,120]
[354361488,1740442242776,-160.0,0.04,120]
[354361490,1740442242785,-638.60977079,0.04051787,120]
[354361492,1740442242796,-5308.31159503,0.0409767,30]
[354361495,1740442242805,-638.60977079,0.04153473,120]
[354361497,1740442242815,-5308.31159503,0.0422656,30]
[354361499,1740442242824,-638.60977079,0.04248215,120]
[354361501,1740442242834,-638.60977079,0.04346429,120]
[354361503,1740442242845,-5308.31159503,0.0435545,30]
[354361505,1740442242855,-155.0,0.04444,120]
[354361507,1740442242864,-638.60977079,0.04444643,120]
[354361510,1740442242874,-5308.31159503,0.0448434,30]
[354361512,1740442242884,-151.0,0.045014,82]
[354361515,1740442242895,-151.0,0.045017,101]
[354361519,1740442242905,-2000.0,0.045363,120]
[354361521,1740442242916,-638.60977079,0.04542857,120]
[354361524,1740442242928,-1483.77,0.04593,112]
[354361525,1740442242938,-5308.31159503,0.0461323,30]
[354361527,1740442242947,-638.60977079,0.04641071,120]
[354361529,1740442242957,-638.60977079,0.04739286,120]
[354361530,1740442242966,-5308.31159503,0.0474212,30]
[354361532,1740442242976,-100000.0,0.04789,120]
[354361534,1740442242986,-638.60977079,0.04837574,120]
[354361536,1740442242996,-5308.31159503,0.0487101,30]
[354361538,1740442243006,-10500.0,0.049,120]
[354361539,1740442243016,-638.60977079,0.04935715,120]
[354361541,1740442243028,-5308.31159503,0.049999,30]
[354361542,1740442243037,-519.88627114,0.05,30]
[354361543,1740442243048,-155.0,0.05,120]
[354361544,1740442243058,-161.0,0.05,120]
[354361545,1740442243068,-151.0,0.05,120]
[354361546,1740442243078,-19726.36920161,0.05,120]
[354361547,1740442243088,-638.60977079,0.0503393,120]
[354361548,1740442243098,-638.60977079,0.05132143,120]
[354361549,1740442243108,-2958.0,0.05156054,83]
[354361550,1740442243118,-1668.722,0.05169,76]
[354361552,1740442243127,-638.60977079,0.05230358,120]
[354361554,1740442243137,-638.60977079,0.05328572,120]
[354361556,1740442243147,-1987.6,0.0533876,120]
[354361557,1740442243156,-1499.6,0.05345381,76]
[354361559,1740442243165,-638.60977079,0.05426786,120]
[354361561,1740442243178,-1987.6,0.0543876,120]
[354361562,1740442243189,-638.60977079,0.05525305,120]
[354361564,1740442243203,-2875.8494,0.05525426,95]
[354361565,1740442243213,-2987.6,0.0553876,120]
[354361567,1740442243222,-155.0,0.05555,120]
[354361568,1740442243234,-2000.0,0.055614,120]
[354361569,1740442243244,-20000.0,0.0559999,120]
[354361570,1740442243253,-638.60977079,0.05623215,120]
[354361571,1740442243263,-2999.0,0.0563876,120]
[354361572,1740442243275,-1682.0,0.056618,111]
[354361573,1740442243284,-503.1546495,0.0568,110]
[354361574,1740442243294,-638.60977079,0.0572143,120]
[354361575,1740442243304,-200.0,0.0574747,120]
[354361576,1740442243313,-150.0,0.057478,120]
[354361577,1740442243324,-155.0,0.05777,120]
[354361578,1740442243334,-31300.0,0.058,120]
[354361580,1740442243344,-638.60977079,0.05819644,120]
[354361581,1740442243354,-1669.48199,0.0583,84]
[354361583,1740442243365,-1524.86646,0.059,118]
[354361584,1740442243375,-638.60977079,0.05917858,120]
[354361585,1740442243385,-1909.66,0.0595,120]
[354361586,1740442243395,-300000.0,0.05969,120]
[354361587,1740442243405,-155.0,0.06,120]
[354361588,1740442243414,-151.0,0.06,120]
[354361589,1740442243426,-209.41566904,0.06,120]
[354361590,1740442243435,-803.92976777,0.06016072,120]
[354361591,1740442243444,-638.60977079,0.06016072,120]
[354361592,1740442243454,-803.92976777,0.06114286,120]
[354361593,1740442243463,-638.60977079,0.06114286,120]
[354361594,1740442243473,-803.92976777,0.06212517,120]
[354361595,1740442243483,-638.60977079,0.06212518,120]
[354361596,1740442243493,-1981.44081,0.062168,107]
[354361597,1740442243503,-10000.0,0.063,120]
[354361598,1740442243513,-1812.332221,0.06301585,69]
[354361599,1740442243523,-803.92976777,0.06310715,120]
[354361600,1740442243532,-638.60977079,0.06310715,120]
[354361601,1740442243542,-155.0,0.06333,120]
[354361602,1740442243553,-436000.0,0.063878,120]
[354361603,1740442243562,-803.92976777,0.0640893,120]
[354361604,1740442243572,-638.60977079,0.0640893,120]
[354361605,1740442243583,-2000.0,0.0649,120]
[354361606,1740442243593,-10000.0,0.065,120]
[354361607,1740442243602,-638.60977079,0.06507143,120]
[354361608,1740442243612,-803.92976777,0.06507144,120]
[354361609,1740442243622,-638.60977079,0.06605357,120]
[354361610,1740442243632,-803.92976777,0.06605358,120]
[354361611,1740442243642,-10000.0,0.0664,120]
[354361612,1740442243652,-155.0,0.06666,120]
[354361614,1740442243662,-9182.08343474,0.0667,120]
[354361615,1740442243671,-803.92976777,0.06703571,120]
[354361616,1740442243681,-638.60977079,0.06703571,120]
[354361617,1740442243690,-2000.0,0.067071,120]
[354361618,1740442243701,-638.60977079,0.06801786,120]
[354361619,1740442243711,-200.0,0.069,120]
[354361620,1740442243720,-800000.0,0.0699,120]
[354361621,1740442243730,-48959.41458602,0.07,61]
[354361622,1740442243739,-18001.61638745,0.07,61]
[354361624,1740442243749,-150.0,0.07,30]
[354361626,1740442243759,-6443.95793943,0.07,30]
[354361627,1740442243768,-1000.0,0.07,28]
[354361629,1740442243778,-1000.0,0.07,28]
[354361631,1740442243788,-1000.0,0.07,28]
[354361633,1740442243798,-1000.0,0.07,28]
[354361635,1740442243807,-1000.0,0.07,28]
[354361637,1740442243817,-1000.0,0.07,28]
[354361639,1740442243826,-1000.0,0.07,28]
[354361641,1740442243836,-1000.0,0.07,28]
[354361643,1740442243846,-1000.0,0.07,28]
[354361645,1740442243856,-1000.0,0.07,28]
[354361647,1740442243866,-1000.0,0.07,28]
[354361650,1740442243876,-1000.0,0.07,28]
[354361651,1740442243885,-1000.0,0.07,28]
[354361653,1740442243895,-1000.0,0.07,28]
[354361655,1740442243905,-1000.0,0.07,28]
[354361657,1740442243915,-1000.0,0.07,28]
[354361659,1740442243926,-1000.0,0.07,28]
[354361661,1740442243936,-1000.0,0.07,28]
[354361662,1740442243947,-1000.0,0.07,28]
[354361663,1740442243959,-1000.0,0.07,28]
[354361664,1740442243968,-1000.0,0.07,28]
[354361665,1740442243978,-1000.0,0.07,28]
[354361666,1740442243989,-1000.0,0.07,28]
[354361667,1740442243999,-1000.0,0.07,28]
[354361668,1740442244012,-1000.0,0.07,28]
[354361669,1740442244022,-1000.0,0.07,28]
[354361670,1740442244032,-1000.0,0.07,28]
[354361671,1740442244042,-1000.0,0.07,28]
[354361672,1740442244052,-1000.0,0.07,28]